[Event "Titled Tuesday Blitz April 19 Early 2022"]
[White "Johnson, Ben"]
[Black "Sovetbekova, Nurai"]
[WhiteFideId "2010917"]
[BlackFideId "13801910"]
[WhiteElo "2114"]
[BlackElo "1538"]
[Result "0-1"]
[Round "06"]
[TimeControl "180+1"]
[Date "2022.04.19"]
[WhiteClock "0:00:02"]
[BlackClock "0:00:05"]

1. Nf3 {[%clk 0:03:00]}  Nf6 {[%clk 0:02:59]} 2. c4 {[%clk 0:03:00]}  g6 {[%clk 0:02:58]} 3. b3 {[%clk 0:03:00]}  Bg7 {[%clk 0:02:58]} 4. Bb2 {[%clk 0:03:01]}  O-O {[%clk 0:02:58]} 5. g3 {[%clk 0:03:00]}  b6 {[%clk 0:02:51]} 6. Bg2 {[%clk 0:02:59]}  Bb7 {[%clk 0:02:52]} 7. O-O {[%clk 0:03:00]}  c5 {[%clk 0:02:50]} 8. Nc3 {[%clk 0:02:55]}  Nc6 {[%clk 0:02:47]} 9. Nd5 {[%clk 0:02:49]}  Nxd5 {[%clk 0:02:29]} 10. Bxg7 {[%clk 0:02:47]}  Kxg7 {[%clk 0:02:30]} 11. cxd5 {[%clk 0:02:46]}  Nb4 {[%clk 0:02:26]} 12. d4 {[%clk 0:02:00]}  Nxd5 {[%clk 0:02:16]} 13. dxc5 {[%clk 0:02:00]}  bxc5 {[%clk 0:02:16]} 14. Ng5 {[%clk 0:01:47]}  e6 {[%clk 0:02:07]} 15. h4 {[%clk 0:01:43]}  h5 {[%clk 0:01:47]} 16. Rc1 {[%clk 0:01:36]}  Rc8 {[%clk 0:01:45]} 17. e4 {[%clk 0:01:23]}  Nb4 {[%clk 0:01:37]} 18. e5 {[%clk 0:01:17]}  Bxg2 {[%clk 0:01:36]} 19. Kxg2 {[%clk 0:01:18]}  Qc7 {[%clk 0:01:28]} 20. Re1 {[%clk 0:01:07]}  f6 {[%clk 0:01:20]} 21. exf6+ {[%clk 0:00:59]}  Rxf6 {[%clk 0:01:21]} 22. a3 {[%clk 0:00:49]}  Nd5 {[%clk 0:01:10]} 23. b4 {[%clk 0:00:42]}  c4 {[%clk 0:00:36]} 24. Qd4 {[%clk 0:00:37]}  Ne7 {[%clk 0:00:19]} 25. Ne4 {[%clk 0:00:31]}  e5 {[%clk 0:00:19]} 26. Qe3 {[%clk 0:00:19]}  Rf5 {[%clk 0:00:17]} 27. Nc5 {[%clk 0:00:18]}  Rcf8 {[%clk 0:00:13]} 28. Re2 {[%clk 0:00:17]}  Nd5 {[%clk 0:00:12]} 29. Qe4 {[%clk 0:00:15]}  Nf6 {[%clk 0:00:10]} 30. Qb7 {[%clk 0:00:12]}  Qxb7+ {[%clk 0:00:10]} 31. Nxb7 {[%clk 0:00:13]}  d5 {[%clk 0:00:06]} 32. Nd6 {[%clk 0:00:12]}  Ng4 {[%clk 0:00:04]} 33. Nxf5+ {[%clk 0:00:09]}  Rxf5 {[%clk 0:00:05]} 34. Rd2 {[%clk 0:00:09]}  Nf6 {[%clk 0:00:03]} 35. f3 {[%clk 0:00:07]}  e4 {[%clk 0:00:03]} 36. fxe4 {[%clk 0:00:07]}  Nxe4 {[%clk 0:00:03]} 37. Re2 {[%clk 0:00:07]}  Kf6 {[%clk 0:00:04]} 38. Rf1 {[%clk 0:00:06]}  Ke5 {[%clk 0:00:04]} 39. Rxf5+ {[%clk 0:00:06]}  gxf5 {[%clk 0:00:05]} 40. Kf3 {[%clk 0:00:06]}  d4 {[%clk 0:00:05]} 41. Re1 {[%clk 0:00:06]}  d3 {[%clk 0:00:05]} 42. Rc1 {[%clk 0:00:06]}  Kd4 {[%clk 0:00:05]} 43. b5 {[%clk 0:00:05]}  d2 {[%clk 0:00:05]} 44. Rd1 {[%clk 0:00:04]}  c3 {[%clk 0:00:05]} 45. a4 {[%clk 0:00:05]}  c2 {[%clk 0:00:05]} 46. Ke2 {[%clk 0:00:02]}  cxd1=Q+ {[%clk 0:00:05]} 47. Kxd1 {[%clk 0:00:02]}  Kd3 {[%clk 0:00:06]} 48. b6 {[%clk 0:00:02]}  Nc3# {[%clk 0:00:05]} 0-1


[Site "https://www.chess.com"]

[Event "Titled Tuesday Blitz April 19 Early 2022"]
[White "Kosteniuk, Alexandra"]
[Black "Paravyan, David"]
[WhiteFideId "4128125"]
[BlackFideId "4194985"]
[WhiteElo "2469"]
[BlackElo "2569"]
[Result "1/2-1/2"]
[Round "06"]
[TimeControl "180+1"]
[Date "2022.04.19"]
[WhiteClock "0:00:10"]
[BlackClock "0:00:05"]

1. e4 {[%clk 0:03:00]}  e5 {[%clk 0:02:54]} 2. Nf3 {[%clk 0:03:00]}  Nf6 {[%clk 0:02:55]} 3. Nxe5 {[%clk 0:02:58]}  d6 {[%clk 0:02:55]} 4. Nf3 {[%clk 0:02:58]}  Nxe4 {[%clk 0:02:56]} 5. Bd3 {[%clk 0:02:58]}  d5 {[%clk 0:02:55]} 6. O-O {[%clk 0:02:57]}  Be7 {[%clk 0:02:55]} 7. Re1 {[%clk 0:02:56]}  O-O {[%clk 0:02:56]} 8. Bxe4 {[%clk 0:02:54]}  dxe4 {[%clk 0:02:57]} 9. Rxe4 {[%clk 0:02:54]}  c5 {[%clk 0:02:57]} 10. Nc3 {[%clk 0:02:51]}  Nc6 {[%clk 0:02:57]} 11. d3 {[%clk 0:02:50]}  b6 {[%clk 0:02:45]} 12. Bf4 {[%clk 0:02:35]}  Bb7 {[%clk 0:02:42]} 13. Re1 {[%clk 0:02:32]}  Qd7 {[%clk 0:02:35]} 14. Ne5 {[%clk 0:02:20]}  Nxe5 {[%clk 0:02:34]} 15. Bxe5 {[%clk 0:02:20]}  Rfe8 {[%clk 0:02:29]} 16. Qh5 {[%clk 0:02:17]}  Bf8 {[%clk 0:02:17]} 17. Bg3 {[%clk 0:02:09]}  Re6 {[%clk 0:01:57]} 18. Rxe6 {[%clk 0:01:54]}  Qxe6 {[%clk 0:01:57]} 19. Qe2 {[%clk 0:01:54]}  Qc6 {[%clk 0:01:51]} 20. f3 {[%clk 0:01:55]}  Re8 {[%clk 0:01:48]} 21. Qd2 {[%clk 0:01:50]}  Qd7 {[%clk 0:01:29]} 22. Re1 {[%clk 0:01:48]}  Rxe1+ {[%clk 0:01:23]} 23. Qxe1 {[%clk 0:01:43]}  c4 {[%clk 0:01:18]} 24. dxc4 {[%clk 0:01:35]}  Qd4+ {[%clk 0:01:18]} 25. Bf2 {[%clk 0:01:32]}  Qxc4 {[%clk 0:01:18]} 26. h4 {[%clk 0:01:26]}  Bc6 {[%clk 0:01:04]} 27. a3 {[%clk 0:01:14]}  h6 {[%clk 0:00:59]} 28. Qe5 {[%clk 0:01:05]}  Qa6 {[%clk 0:00:30]} 29. Bd4 {[%clk 0:00:56]}  Qb7 {[%clk 0:00:27]} 30. b4 {[%clk 0:00:55]}  Qd7 {[%clk 0:00:24]} 31. b5 {[%clk 0:00:42]}  Bb7 {[%clk 0:00:23]} 32. a4 {[%clk 0:00:42]}  f6 {[%clk 0:00:20]} 33. Qe3 {[%clk 0:00:38]}  Bb4 {[%clk 0:00:17]} 34. Ne4 {[%clk 0:00:35]}  Ba5 {[%clk 0:00:14]} 35. c3 {[%clk 0:00:33]}  Kf8 {[%clk 0:00:09]} 36. Qf4 {[%clk 0:00:31]}  Bd5 {[%clk 0:00:09]} 37. Qb8+ {[%clk 0:00:29]}  Kf7 {[%clk 0:00:06]} 38. Qf4 {[%clk 0:00:26]}  Qe7 {[%clk 0:00:04]} 39. Nd6+ {[%clk 0:00:24]}  Kg8 {[%clk 0:00:04]} 40. h5 {[%clk 0:00:22]}  Qd7 {[%clk 0:00:04]} 41. Nf5 {[%clk 0:00:20]}  Be6 {[%clk 0:00:04]} 42. Nh4 {[%clk 0:00:16]}  Bf7 {[%clk 0:00:04]} 43. g4 {[%clk 0:00:16]}  Qe6 {[%clk 0:00:03]} 44. Kf2 {[%clk 0:00:15]}  Qa2+ {[%clk 0:00:03]} 45. Kg3 {[%clk 0:00:15]}  Qb1 {[%clk 0:00:04]} 46. Nf5 {[%clk 0:00:09]}  Qe1+ {[%clk 0:00:04]} 47. Kg2 {[%clk 0:00:07]}  Bxc3 {[%clk 0:00:02]} 48. Bxc3 {[%clk 0:00:08]}  Qxc3 {[%clk 0:00:03]} 49. Qb8+ {[%clk 0:00:08]}  Kh7 {[%clk 0:00:03]} 50. Qxa7 {[%clk 0:00:08]}  Qd2+ {[%clk 0:00:03]} 51. Kg3 {[%clk 0:00:09]}  Qe1+ {[%clk 0:00:03]} 52. Kg2 {[%clk 0:00:10]}  Qe2+ {[%clk 0:00:04]} 53. Kg3 {[%clk 0:00:10]}  Qe1+ {[%clk 0:00:04]} 54. Kg2 {[%clk 0:00:10]}  Qe2+ {[%clk 0:00:05]} 55. Kg3 {[%clk 0:00:10]}  Qe1+ {[%clk 0:00:05]} 1/2-1/2


[Site "https://www.chess.com"]

[Event "Titled Tuesday Blitz April 19 Early 2022"]
[White "Lauridsen, Jesper Morch"]
[Black "Pesotskiy, Mikhail"]
[WhiteFideId "1401890"]
[BlackFideId "34164453"]
[WhiteElo "2255"]
[BlackElo "2010"]
[Result "0-1"]
[Round "06"]
[TimeControl "180+1"]
[Date "2022.04.19"]
[WhiteClock "0:01:07"]
[BlackClock "0:01:05"]

1. e4 {[%clk 0:02:46]}  e6 {[%clk 0:02:59]} 2. d4 {[%clk 0:02:43]}  d5 {[%clk 0:02:59]} 3. exd5 {[%clk 0:02:42]}  exd5 {[%clk 0:03:00]} 4. Nf3 {[%clk 0:02:42]}  Bd6 {[%clk 0:02:59]} 5. Bd3 {[%clk 0:02:43]}  Nc6 {[%clk 0:03:00]} 6. O-O {[%clk 0:02:43]}  Nge7 {[%clk 0:03:00]} 7. h3 {[%clk 0:02:42]}  O-O {[%clk 0:03:00]} 8. c3 {[%clk 0:02:42]}  Bf5 {[%clk 0:03:00]} 9. Bxf5 {[%clk 0:02:40]}  Nxf5 {[%clk 0:03:01]} 10. Qd3 {[%clk 0:02:35]}  Qd7 {[%clk 0:03:01]} 11. b4 {[%clk 0:02:32]}  a6 {[%clk 0:02:56]} 12. Nbd2 {[%clk 0:02:29]}  Rfe8 {[%clk 0:02:56]} 13. Nb3 {[%clk 0:02:30]}  b6 {[%clk 0:02:42]} 14. Bd2 {[%clk 0:02:24]}  a5 {[%clk 0:02:41]} 15. b5 {[%clk 0:02:24]}  Nce7 {[%clk 0:02:41]} 16. Rae1 {[%clk 0:02:22]}  Ng6 {[%clk 0:02:41]} 17. Rxe8+ {[%clk 0:02:04]}  Rxe8 {[%clk 0:02:42]} 18. Re1 {[%clk 0:02:04]}  Rxe1+ {[%clk 0:02:36]} 19. Nxe1 {[%clk 0:02:04]}  a4 {[%clk 0:01:44]} 20. Nc1 {[%clk 0:02:01]}  Bf8 {[%clk 0:01:44]} 21. Ne2 {[%clk 0:01:57]}  Nd6 {[%clk 0:01:44]} 22. Ng3 {[%clk 0:01:56]}  Qxb5 {[%clk 0:01:44]} 23. Qxb5 {[%clk 0:01:50]}  Nxb5 {[%clk 0:01:45]} 24. Nf5 {[%clk 0:01:46]}  Na3 {[%clk 0:01:38]} 25. Nd3 {[%clk 0:01:43]}  Nc4 {[%clk 0:01:28]} 26. Bc1 {[%clk 0:01:42]}  c6 {[%clk 0:01:20]} 27. g3 {[%clk 0:01:39]}  Ne7 {[%clk 0:01:20]} 28. Ne3 {[%clk 0:01:34]}  Nxe3 {[%clk 0:01:19]} 29. fxe3 {[%clk 0:01:34]}  Nf5 {[%clk 0:01:20]} 30. Kf2 {[%clk 0:01:34]}  Nd6 {[%clk 0:01:20]} 31. Ne5 {[%clk 0:01:33]}  Ne4+ {[%clk 0:01:20]} 32. Kf3 {[%clk 0:01:32]}  Nxc3 {[%clk 0:01:20]} 33. Nxc6 {[%clk 0:01:31]}  Nxa2 {[%clk 0:01:21]} 34. Bb2 {[%clk 0:01:30]}  b5 {[%clk 0:01:17]} 35. e4 {[%clk 0:01:27]}  dxe4+ {[%clk 0:01:14]} 36. Kxe4 {[%clk 0:01:27]}  b4 {[%clk 0:01:15]} 37. d5 {[%clk 0:01:25]}  b3 {[%clk 0:01:06]} 38. Ke5 {[%clk 0:01:16]}  a3 {[%clk 0:01:06]} 39. Bxa3 {[%clk 0:01:16]}  Bxa3 {[%clk 0:01:05]} 40. d6 {[%clk 0:01:09]}  Bxd6+ {[%clk 0:01:05]} 41. Kxd6 {[%clk 0:01:08]}  b2 {[%clk 0:01:05]} 42. Ne7+ {[%clk 0:01:06]}  Kh8 {[%clk 0:01:06]} 43. Ng6+ {[%clk 0:01:07]}  fxg6 {[%clk 0:01:05]} 0-1


[Site "https://www.chess.com"]

[Event "Titled Tuesday Blitz April 19 Early 2022"]
[White "Lehtosaari, Mauri"]
[Black "Sapunov, Evgeny"]
[WhiteFideId "501999"]
[BlackFideId "4126661"]
[WhiteElo "2542"]
[BlackElo "2470"]
[Result "0-1"]
[Round "06"]
[TimeControl "180+1"]
[Date "2022.04.19"]
[WhiteClock "0:00:02"]
[BlackClock "0:00:20"]

1. d4 {[%clk 0:03:00]}  Nf6 {[%clk 0:02:59]} 2. Nf3 {[%clk 0:03:00]}  g6 {[%clk 0:02:59]} 3. Bg5 {[%clk 0:03:01]}  Bg7 {[%clk 0:02:59]} 4. Nbd2 {[%clk 0:03:01]}  d5 {[%clk 0:03:00]} 5. e3 {[%clk 0:03:01]}  Nbd7 {[%clk 0:03:00]} 6. Be2 {[%clk 0:03:01]}  O-O {[%clk 0:03:00]} 7. O-O {[%clk 0:03:02]}  c5 {[%clk 0:03:01]} 8. c3 {[%clk 0:03:02]}  b6 {[%clk 0:03:01]} 9. a4 {[%clk 0:03:02]}  a6 {[%clk 0:03:01]} 10. Bh4 {[%clk 0:03:01]}  Bb7 {[%clk 0:03:02]} 11. Ne5 {[%clk 0:02:59]}  Nxe5 {[%clk 0:03:01]} 12. dxe5 {[%clk 0:03:00]}  Nd7 {[%clk 0:03:01]} 13. f4 {[%clk 0:02:48]}  Re8 {[%clk 0:02:53]} 14. Bf3 {[%clk 0:01:36]}  Qc7 {[%clk 0:02:50]} 15. Bg3 {[%clk 0:01:29]}  Rad8 {[%clk 0:02:45]} 16. Qb3 {[%clk 0:01:26]}  c4 {[%clk 0:02:42]} 17. Qc2 {[%clk 0:01:26]}  Qc5 {[%clk 0:02:41]} 18. Bf2 {[%clk 0:01:21]}  Qc7 {[%clk 0:02:31]} 19. Rae1 {[%clk 0:01:19]}  b5 {[%clk 0:02:21]} 20. axb5 {[%clk 0:01:18]}  axb5 {[%clk 0:02:22]} 21. e4 {[%clk 0:01:13]}  Nc5 {[%clk 0:02:22]} 22. Bxc5 {[%clk 0:01:07]}  Qxc5+ {[%clk 0:02:21]} 23. Kh1 {[%clk 0:01:08]}  d4 {[%clk 0:02:22]} 24. cxd4 {[%clk 0:01:06]}  Qxd4 {[%clk 0:02:21]} 25. Nb1 {[%clk 0:00:59]}  b4 {[%clk 0:02:03]} 26. Rd1 {[%clk 0:00:54]}  Qc5 {[%clk 0:01:59]} 27. Nd2 {[%clk 0:00:52]}  Ba6 {[%clk 0:01:56]} 28. Nb3 {[%clk 0:00:49]}  Qb6 {[%clk 0:01:53]} 29. Nc1 {[%clk 0:00:45]}  g5 {[%clk 0:01:43]} 30. fxg5 {[%clk 0:00:31]}  Bxe5 {[%clk 0:01:41]} 31. Bh5 {[%clk 0:00:30]}  Rf8 {[%clk 0:01:37]} 32. Rxd8 {[%clk 0:00:30]}  Qxd8 {[%clk 0:01:38]} 33. Qf2 {[%clk 0:00:25]}  Qd4 {[%clk 0:01:32]} 34. Bxf7+ {[%clk 0:00:21]}  Kg7 {[%clk 0:01:21]} 35. Qf5 {[%clk 0:00:17]}  Bc8 {[%clk 0:01:17]} 36. Qf3 {[%clk 0:00:16]}  Be6 {[%clk 0:01:12]} 37. Ne2 {[%clk 0:00:16]}  Qd3 {[%clk 0:01:01]} 38. Nf4 {[%clk 0:00:16]}  Bxf4 {[%clk 0:00:45]} 39. Qxd3 {[%clk 0:00:12]}  cxd3 {[%clk 0:00:43]} 40. Bxe6 {[%clk 0:00:13]}  d2 {[%clk 0:00:42]} 41. Bb3 {[%clk 0:00:11]}  Rc8 {[%clk 0:00:40]} 42. Rd1 {[%clk 0:00:11]}  Bxg5 {[%clk 0:00:39]} 43. g3 {[%clk 0:00:11]}  Rd8 {[%clk 0:00:38]} 44. Kg2 {[%clk 0:00:11]}  Bf6 {[%clk 0:00:38]} 45. Rb1 {[%clk 0:00:10]}  Rd3 {[%clk 0:00:36]} 46. Bd1 {[%clk 0:00:09]}  Re3 {[%clk 0:00:36]} 47. Bf3 {[%clk 0:00:08]}  Re1 {[%clk 0:00:34]} 48. Bd1 {[%clk 0:00:07]}  Bd4 {[%clk 0:00:32]} 49. Kf3 {[%clk 0:00:07]}  e5 {[%clk 0:00:31]} 50. b3 {[%clk 0:00:06]}  Kf6 {[%clk 0:00:29]} 51. h4 {[%clk 0:00:05]}  h6 {[%clk 0:00:28]} 52. Kg4 {[%clk 0:00:05]}  Kg6 {[%clk 0:00:27]} 53. h5+ {[%clk 0:00:04]}  Kf6 {[%clk 0:00:27]} 54. Kf3 {[%clk 0:00:05]}  Kg5 {[%clk 0:00:27]} 55. g4 {[%clk 0:00:06]}  Kh4 {[%clk 0:00:27]} 56. Kg2 {[%clk 0:00:05]}  Kg5 {[%clk 0:00:21]} 57. Kf3 {[%clk 0:00:05]}  Bc5 {[%clk 0:00:21]} 58. Kg2 {[%clk 0:00:02]}  Kf4 {[%clk 0:00:21]} 59. Kh3 {[%clk 0:00:01]}  Rg1 {[%clk 0:00:18]} 60. Kh2 {[%clk 0:00:01]}  Rf1 {[%clk 0:00:18]} 61. Kg2 {[%clk 0:00:02]}  Rf2+ {[%clk 0:00:18]} 62. Kh3 {[%clk 0:00:02]}  Rf1 {[%clk 0:00:19]} 63. Kg2 {[%clk 0:00:03]}  Re1 {[%clk 0:00:18]} 64. Kh3 {[%clk 0:00:02]}  Bd4 {[%clk 0:00:19]} 65. Kg2 {[%clk 0:00:02]}  Bc3 {[%clk 0:00:19]} 66. Kh3 {[%clk 0:00:03]}  Kxe4 {[%clk 0:00:19]} 67. g5 {[%clk 0:00:03]}  hxg5 {[%clk 0:00:18]} 68. Kg2 {[%clk 0:00:03]}  Kf4 {[%clk 0:00:19]} 69. h6 {[%clk 0:00:04]}  g4 {[%clk 0:00:19]} 70. h7 {[%clk 0:00:04]}  e4 {[%clk 0:00:20]} 71. Kf2 {[%clk 0:00:01]}  e3+ {[%clk 0:00:20]} 72. Kg2 {[%clk 0:00:02]}  e2 {[%clk 0:00:20]} 73. Bxe2 {[%clk 0:00:02]}  Rxb1 {[%clk 0:00:20]} 0-1


[Site "https://www.chess.com"]

[Event "Titled Tuesday Blitz April 19 Early 2022"]
[White "Mangialardo, Tiago Carvalho"]
[Black "Manukian, Artak"]
[WhiteFideId "2130718"]
[BlackFideId "13301373"]
[WhiteElo "2043"]
[BlackElo "2319"]
[Result "0-1"]
[Round "06"]
[TimeControl "180+1"]
[Date "2022.04.19"]
[WhiteClock "0:00:03"]
[BlackClock "0:00:27"]

1. e4 {[%clk 0:03:00]}  c6 {[%clk 0:02:58]} 2. c4 {[%clk 0:03:00]}  d5 {[%clk 0:02:59]} 3. exd5 {[%clk 0:03:01]}  cxd5 {[%clk 0:02:58]} 4. cxd5 {[%clk 0:03:02]}  Nf6 {[%clk 0:02:58]} 5. Bb5+ {[%clk 0:03:03]}  Nbd7 {[%clk 0:02:57]} 6. Nc3 {[%clk 0:03:03]}  g6 {[%clk 0:02:57]} 7. Nf3 {[%clk 0:03:03]}  Bg7 {[%clk 0:02:57]} 8. d6 {[%clk 0:03:03]}  exd6 {[%clk 0:02:55]} 9. Qe2+ {[%clk 0:03:04]}  Qe7 {[%clk 0:02:55]} 10. Qxe7+ {[%clk 0:03:04]}  Kxe7 {[%clk 0:02:56]} 11. O-O {[%clk 0:03:02]}  Re8 {[%clk 0:02:55]} 12. d4 {[%clk 0:03:02]}  Kf8 {[%clk 0:02:53]} 13. Bf4 {[%clk 0:03:02]}  d5 {[%clk 0:02:53]} 14. Ne5 {[%clk 0:02:20]}  a6 {[%clk 0:02:36]} 15. Nxd7+ {[%clk 0:02:17]}  Bxd7 {[%clk 0:02:36]} 16. Bxd7 {[%clk 0:02:16]}  Nxd7 {[%clk 0:02:37]} 17. Nxd5 {[%clk 0:02:16]}  Re2 {[%clk 0:02:37]} 18. Be3 {[%clk 0:01:40]}  Rxb2 {[%clk 0:02:28]} 19. Rfb1 {[%clk 0:01:40]}  Rxb1+ {[%clk 0:02:26]} 20. Rxb1 {[%clk 0:01:41]}  b5 {[%clk 0:02:26]} 21. Rc1 {[%clk 0:01:08]}  Nf6 {[%clk 0:02:24]} 22. Nc7 {[%clk 0:01:07]}  Rc8 {[%clk 0:02:21]} 23. Nxa6 {[%clk 0:00:56]}  Rxc1+ {[%clk 0:02:20]} 24. Bxc1 {[%clk 0:00:57]}  Nd5 {[%clk 0:02:20]} 25. Ba3+ {[%clk 0:00:36]}  Ke8 {[%clk 0:02:17]} 26. Bc5 {[%clk 0:00:37]}  Kd7 {[%clk 0:02:15]} 27. Kf1 {[%clk 0:00:31]}  Kc6 {[%clk 0:02:12]} 28. a3 {[%clk 0:00:24]}  h5 {[%clk 0:01:28]} 29. g3 {[%clk 0:00:17]}  h4 {[%clk 0:01:24]} 30. Ke2 {[%clk 0:00:17]}  h3 {[%clk 0:01:21]} 31. Kd3 {[%clk 0:00:10]}  f5 {[%clk 0:01:14]} 32. Ke2 {[%clk 0:00:04]}  Nc3+ {[%clk 0:01:06]} 33. Kf3 {[%clk 0:00:03]}  g5 {[%clk 0:00:55]} 34. g4 {[%clk 0:00:03]}  f4 {[%clk 0:00:51]} 35. Nb4+ {[%clk 0:00:03]}  Kd7 {[%clk 0:00:50]} 36. d5 {[%clk 0:00:03]}  Be5 {[%clk 0:00:41]} 37. Bb6 {[%clk 0:00:03]}  Bd6 {[%clk 0:00:39]} 38. Bd4 {[%clk 0:00:02]}  Bxb4 {[%clk 0:00:39]} 39. axb4 {[%clk 0:00:02]}  Nxd5 {[%clk 0:00:40]} 40. Bc5 {[%clk 0:00:02]}  Ke6 {[%clk 0:00:33]} 41. Ke4 {[%clk 0:00:03]}  Nc3+ {[%clk 0:00:33]} 42. Kd3 {[%clk 0:00:03]}  Na4 {[%clk 0:00:31]} 43. Kc2 {[%clk 0:00:02]}  Kd5 {[%clk 0:00:30]} 44. Be7 {[%clk 0:00:01]}  Ke4 {[%clk 0:00:31]} 45. Bxg5 {[%clk 0:00:01]}  Kf3 {[%clk 0:00:32]} 46. Bh6 {[%clk 0:00:01]}  Kxg4 {[%clk 0:00:32]} 47. Kd3 {[%clk 0:00:01]}  Kf3 {[%clk 0:00:29]} 48. Kd4 {[%clk 0:00:01]}  Nb2 {[%clk 0:00:28]} 49. Bg5 {[%clk 0:00:01]}  Nd1 {[%clk 0:00:28]} 50. Ke5 {[%clk 0:00:02]}  Nxf2 {[%clk 0:00:28]} 51. Bxf4 {[%clk 0:00:02]}  Nd3+ {[%clk 0:00:27]} 52. Kf5 {[%clk 0:00:03]}  Nxf4 {[%clk 0:00:28]} 53. Kg5 {[%clk 0:00:03]}  Nd3 {[%clk 0:00:26]} 54. Kh4 {[%clk 0:00:04]}  Kg2 {[%clk 0:00:26]} 55. Kg4 {[%clk 0:00:03]}  Nxb4 {[%clk 0:00:27]} 0-1


[Site "https://www.chess.com"]

[Event "Titled Tuesday Blitz April 19 Early 2022"]
[White "Martic, Ivan"]
[Black "Petrovskyi, Vadym"]
[WhiteFideId "929301"]
[BlackFideId "14165210"]
[WhiteElo "2317"]
[BlackElo "2400"]
[Result "0-1"]
[Round "06"]
[TimeControl "180+1"]
[Date "2022.04.19"]
[WhiteClock "0:00:02"]
[BlackClock "0:00:11"]

1. e4 {[%clk 0:03:00]}  c5 {[%clk 0:03:00]} 2. Nf3 {[%clk 0:02:59]}  d6 {[%clk 0:02:59]} 3. d4 {[%clk 0:02:59]}  cxd4 {[%clk 0:03:00]} 4. Nxd4 {[%clk 0:03:00]}  Nf6 {[%clk 0:03:01]} 5. Nc3 {[%clk 0:03:00]}  a6 {[%clk 0:03:01]} 6. Be2 {[%clk 0:02:59]}  e5 {[%clk 0:03:00]} 7. Nf3 {[%clk 0:02:58]}  Be7 {[%clk 0:03:00]} 8. O-O {[%clk 0:02:55]}  O-O {[%clk 0:03:00]} 9. Bg5 {[%clk 0:02:55]}  Be6 {[%clk 0:02:59]} 10. a4 {[%clk 0:02:51]}  Nbd7 {[%clk 0:02:58]} 11. a5 {[%clk 0:02:45]}  Rc8 {[%clk 0:02:58]} 12. Nd2 {[%clk 0:02:37]}  d5 {[%clk 0:02:51]} 13. exd5 {[%clk 0:02:35]}  Nxd5 {[%clk 0:02:52]} 14. Bxe7 {[%clk 0:02:35]}  Qxe7 {[%clk 0:02:52]} 15. Nxd5 {[%clk 0:02:30]}  Bxd5 {[%clk 0:02:53]} 16. c4 {[%clk 0:02:22]}  Bc6 {[%clk 0:02:50]} 17. Qb1 {[%clk 0:02:08]}  e4 {[%clk 0:02:49]} 18. Nb3 {[%clk 0:01:52]}  f5 {[%clk 0:02:32]} 19. Re1 {[%clk 0:01:47]}  e3 {[%clk 0:02:26]} 20. Bf1 {[%clk 0:01:38]}  f4 {[%clk 0:02:11]} 21. Nd4 {[%clk 0:01:32]}  exf2+ {[%clk 0:02:04]} 22. Kxf2 {[%clk 0:01:33]}  Qc5 {[%clk 0:02:02]} 23. Qd1 {[%clk 0:01:14]}  f3 {[%clk 0:02:00]} 24. g3 {[%clk 0:01:10]}  Ne5 {[%clk 0:01:59]} 25. h3 {[%clk 0:00:55]}  Rcd8 {[%clk 0:01:57]} 26. b4 {[%clk 0:00:55]}  Qxd4+ {[%clk 0:01:52]} 27. Qxd4 {[%clk 0:00:55]}  Rxd4 {[%clk 0:01:53]} 28. Rxe5 {[%clk 0:00:55]}  Rd2+ {[%clk 0:01:43]} 29. Ke3 {[%clk 0:00:54]}  Rb2 {[%clk 0:01:40]} 30. b5 {[%clk 0:00:52]}  Bd7 {[%clk 0:01:32]} 31. Re7 {[%clk 0:00:49]}  Bc8 {[%clk 0:01:16]} 32. b6 {[%clk 0:00:46]}  h5 {[%clk 0:01:04]} 33. c5 {[%clk 0:00:42]}  Bxh3 {[%clk 0:00:51]} 34. Bc4+ {[%clk 0:00:32]}  Kh7 {[%clk 0:00:33]} 35. Rxb7 {[%clk 0:00:20]}  f2 {[%clk 0:00:27]} 36. Bf1 {[%clk 0:00:17]}  Re8+ {[%clk 0:00:22]} 37. Kd4 {[%clk 0:00:10]}  Bf5 {[%clk 0:00:20]} 38. c6 {[%clk 0:00:08]}  Rd2+ {[%clk 0:00:16]} 39. Kc3 {[%clk 0:00:07]}  Rc2+ {[%clk 0:00:16]} 40. Kb3 {[%clk 0:00:07]}  Re3+ {[%clk 0:00:13]} 41. Kb4 {[%clk 0:00:06]}  Re1 {[%clk 0:00:12]} 42. Rf7 {[%clk 0:00:02]}  Rxa1 {[%clk 0:00:11]} 43. Rxf5 {[%clk 0:00:02]}  Rxf1 {[%clk 0:00:11]} 0-1


[Site "https://www.chess.com"]

[Event "Titled Tuesday Blitz April 19 Early 2022"]
[White "Matlakov, Maxim"]
[Black "Tristan, Leonardo"]
[WhiteFideId "4168003"]
[BlackFideId "113816"]
[WhiteElo "2669"]
[BlackElo "2404"]
[Result "1-0"]
[Round "06"]
[TimeControl "180+1"]
[Date "2022.04.19"]
[WhiteClock "0:00:09"]
[BlackClock "0:00:01"]

1. Nf3 {[%clk 0:03:00]}  d5 {[%clk 0:03:00]} 2. d4 {[%clk 0:03:00]}  Nf6 {[%clk 0:03:00]} 3. c4 {[%clk 0:03:00]}  e6 {[%clk 0:03:00]} 4. Nc3 {[%clk 0:03:00]}  a6 {[%clk 0:03:00]} 5. cxd5 {[%clk 0:02:53]}  exd5 {[%clk 0:03:00]} 6. Qb3 {[%clk 0:02:52]}  Ra7 {[%clk 0:02:40]} 7. Bg5 {[%clk 0:02:50]}  Be6 {[%clk 0:02:40]} 8. e3 {[%clk 0:02:43]}  Nbd7 {[%clk 0:02:37]} 9. Bd3 {[%clk 0:02:35]}  Bd6 {[%clk 0:02:35]} 10. O-O {[%clk 0:02:34]}  c6 {[%clk 0:02:35]} 11. Qc2 {[%clk 0:02:33]}  Qc7 {[%clk 0:02:32]} 12. Ne2 {[%clk 0:02:23]}  h6 {[%clk 0:02:29]} 13. Bf4 {[%clk 0:02:23]}  O-O {[%clk 0:02:27]} 14. h3 {[%clk 0:02:23]}  Raa8 {[%clk 0:02:27]} 15. b4 {[%clk 0:02:16]}  Rfe8 {[%clk 0:02:23]} 16. a4 {[%clk 0:02:10]}  Bxf4 {[%clk 0:02:16]} 17. Nxf4 {[%clk 0:02:10]}  Qd6 {[%clk 0:02:16]} 18. Rab1 {[%clk 0:02:04]}  b5 {[%clk 0:02:09]} 19. Rfc1 {[%clk 0:02:00]}  Rec8 {[%clk 0:02:06]} 20. a5 {[%clk 0:01:49]}  g5 {[%clk 0:01:58]} 21. Nxe6 {[%clk 0:01:45]}  fxe6 {[%clk 0:01:56]} 22. e4 {[%clk 0:01:44]}  Qf4 {[%clk 0:01:51]} 23. Re1 {[%clk 0:01:41]}  Kh8 {[%clk 0:01:20]} 24. Re3 {[%clk 0:01:21]}  Nh5 {[%clk 0:00:45]} 25. exd5 {[%clk 0:01:13]}  cxd5 {[%clk 0:00:45]} 26. Qe2 {[%clk 0:01:13]}  Ng7 {[%clk 0:00:45]} 27. Re1 {[%clk 0:01:07]}  Rf8 {[%clk 0:00:44]} 28. g3 {[%clk 0:01:02]}  Qf6 {[%clk 0:00:42]} 29. Kg2 {[%clk 0:01:01]}  Rac8 {[%clk 0:00:42]} 30. h4 {[%clk 0:01:00]}  g4 {[%clk 0:00:39]} 31. Ne5 {[%clk 0:00:59]}  Nxe5 {[%clk 0:00:38]} 32. Rxe5 {[%clk 0:00:57]}  Rc3 {[%clk 0:00:35]} 33. Kg1 {[%clk 0:00:41]}  Rxd3 {[%clk 0:00:26]} 34. Qxd3 {[%clk 0:00:42]}  Qxf2+ {[%clk 0:00:26]} 35. Kh1 {[%clk 0:00:43]}  Rf3 {[%clk 0:00:26]} 36. Qe2 {[%clk 0:00:25]}  Qxg3 {[%clk 0:00:27]} 37. Qh2 {[%clk 0:00:25]}  Qxh2+ {[%clk 0:00:21]} 38. Kxh2 {[%clk 0:00:26]}  Rb3 {[%clk 0:00:19]} 39. Rc1 {[%clk 0:00:24]}  Rxb4 {[%clk 0:00:17]} 40. Rc6 {[%clk 0:00:22]}  Rxd4 {[%clk 0:00:17]} 41. Rxa6 {[%clk 0:00:21]}  Ra4 {[%clk 0:00:17]} 42. h5 {[%clk 0:00:20]}  Ra3 {[%clk 0:00:17]} 43. Ra8+ {[%clk 0:00:17]}  Kh7 {[%clk 0:00:17]} 44. Ra7 {[%clk 0:00:18]}  Kg8 {[%clk 0:00:16]} 45. Re1 {[%clk 0:00:18]}  b4 {[%clk 0:00:15]} 46. Rc1 {[%clk 0:00:17]}  g3+ {[%clk 0:00:09]} 47. Kg2 {[%clk 0:00:16]}  Ra2+ {[%clk 0:00:10]} 48. Kxg3 {[%clk 0:00:17]}  Nf5+ {[%clk 0:00:10]} 49. Kf4 {[%clk 0:00:16]}  Nd6 {[%clk 0:00:08]} 50. Ke5 {[%clk 0:00:14]}  Nc4+ {[%clk 0:00:08]} 51. Kxe6 {[%clk 0:00:14]}  Rxa5 {[%clk 0:00:01]} 52. Rg1+ {[%clk 0:00:10]}  Kf8 {[%clk 0:00:01]} 53. Rf7+ {[%clk 0:00:09]} 1-0


[Site "https://www.chess.com"]